fUSD/lending_fUSD_20260503
["ID","MTS","AMOUNT","RATE_DAILY","PERIOD"]
[421484924,1777753857000,-151.0,0.00024143,2]
[421484921,1777753857000,-398.0,0.00024,2]
[421484920,1777753857000,-159.0,0.00024,2]
[421484923,1777753857000,-151.0,0.00024143,2]
[421484917,1777753857000,-3600.0,0.00024,2]
[421484931,1777753857000,-1220.0,0.00024234,2]
[421484926,1777753857000,-1911.75385991,0.00024143,2]
[421484930,1777753857000,-1267.0,0.00024234,2]
[421484928,1777753857000,-1911.75385991,0.00024164,2]
[421484927,1777753857000,-1911.75385991,0.00024162,2]
[421484932,1777753857000,-623.0,0.00024234,2]
[421484929,1777753857000,-1147.7330585,0.0002421,2]
[421484871,1777753857000,-50571.77739823,0.00022827,2]
[421484902,1777753857000,-2437.46644384,0.00023458,2]
[421484904,1777753857000,-151.0,0.00023471,2]
[421484916,1777753857000,-1034.78428603,0.00024,2]
[421484896,1777753857000,-247.901707,0.00023288,2]
[421484903,1777753857000,-151.0,0.00023471,2]
[421484873,1777753857000,-150.0,0.00022994,2]
[421484869,1777753857000,-151.0,0.00022827,2]
[421484879,1777753857000,-159.0,0.00023,2]
[421484890,1777753857000,-1896.61656402,0.00023182,2]
[421484888,1777753857000,-151.0,0.00023144,2]
[421484877,1777753857000,-150.042,0.00022994,2]
[421484878,1777753857000,-250.0,0.00022994,2]
[421484889,1777753857000,-151.0,0.00023144,2]
[421484880,1777753857000,-398.0,0.00023,2]
[421484881,1777753857000,-193.155,0.00023,8]
[421484882,1777753857000,-194.109,0.00023022,2]
[421484883,1777753857000,-150.0,0.00023022,2]
[421484884,1777753857000,-150.0,0.00023022,2]
[421484874,1777753857000,-150.243,0.00022994,2]
[421484887,1777753857000,-151.0,0.00023144,2]
[421484886,1777753857000,-3653.14214986,0.00023143,2]
[421484895,1777753857000,-247.901707,0.00023288,2]
[421484900,1777753857000,-10520.1346366,0.00023295,2]
[421484897,1777753857000,-247.901707,0.00023288,2]
[421484892,1777753857000,-247.901707,0.00023288,2]
[421484899,1777753857000,-247.901707,0.00023288,2]
[421484893,1777753857000,-247.901707,0.00023288,2]
[421484901,1777753857000,-157.87459434,0.00023456,2]
[421484894,1777753857000,-247.901707,0.00023288,2]
[421484898,1777753857000,-247.901707,0.00023288,2]
[421484885,1777753857000,-150.081,0.00023022,2]
[421484891,1777753857000,-1760.15395808,0.00023224,2]
[421484974,1777753858000,-300.0,0.00024658,2]
[421484969,1777753858000,-300.0,0.00024658,2]
[421484972,1777753858000,-300.0,0.00024658,2]
[421484962,1777753858000,-300.0,0.00024658,2]
[421484970,1777753858000,-300.0,0.00024658,2]
[421484968,1777753858000,-300.0,0.00024658,2]
[421484967,1777753858000,-300.0,0.00024658,2]
[421484965,1777753858000,-300.0,0.00024658,2]
[421484966,1777753858000,-300.0,0.00024658,2]
[421484964,1777753858000,-300.0,0.00024658,2]
[421484976,1777753858000,-300.0,0.00024658,2]
[421484971,1777753858000,-300.0,0.00024658,2]
[421484975,1777753858000,-300.0,0.00024658,2]
[421484980,1777753858000,-300.0,0.00024658,2]
[421484979,1777753858000,-300.0,0.00024658,2]
[421484978,1777753858000,-300.0,0.00024658,2]
[421484984,1777753858000,-300.0,0.00024658,2]
[421484982,1777753858000,-300.0,0.00024658,2]
[421484983,1777753858000,-300.0,0.00024658,2]
[421484981,1777753858000,-300.0,0.00024658,2]
[421484986,1777753858000,-563.0,0.00024658,2]
[421484996,1777753858000,-563.0,0.00024658,2]
[421484987,1777753858000,-563.0,0.00024658,2]
[421484985,1777753858000,-563.0,0.00024658,2]
[421484988,1777753858000,-563.0,0.00024658,2]
[421484973,1777753858000,-300.0,0.00024658,2]
[421484977,1777753858000,-300.0,0.00024658,2]
[421484963,1777753858000,-300.0,0.00024658,2]
[421484991,1777753858000,-563.0,0.00024658,2]
[421484960,1777753858000,-300.0,0.00024658,2]
[421484936,1777753858000,-159.0,0.00024324,2]
[421484934,1777753858000,-1911.75385991,0.00024315,2]
[421484937,1777753858000,-1199.17986512,0.0002435,2]
[421484935,1777753858000,-1911.75385991,0.00024318,2]
[421484933,1777753858000,-1351.0,0.00024234,2]
[421484938,1777753858000,-1911.75385991,0.00024353,2]
[421484939,1777753858000,-1911.75385991,0.00024362,2]
[421484949,1777753858000,-300.0,0.00024658,2]
[421484943,1777753858000,-1911.75385991,0.00024512,2]
[421484941,1777753858000,-500.0,0.000245,2]
[421484946,1777753858000,-150.0,0.00024658,2]
[421484942,1777753858000,-500.0,0.000245,2]
[421484940,1777753858000,-1911.75385991,0.00024385,2]
[421484944,1777753858000,-1911.75385991,0.00024602,2]
[421484947,1777753858000,-300.0,0.00024658,2]
[421484950,1777753858000,-300.0,0.00024658,2]
[421484948,1777753858000,-300.0,0.00024658,2]
[421484945,1777753858000,-1911.75385991,0.00024647,2]
[421484951,1777753858000,-300.0,0.00024658,2]
[421484952,1777753858000,-300.0,0.00024658,2]
[421484958,1777753858000,-300.0,0.00024658,2]
[421484953,1777753858000,-300.0,0.00024658,2]
[421484959,1777753858000,-300.0,0.00024658,2]
[421484956,1777753858000,-300.0,0.00024658,2]
[421484955,1777753858000,-300.0,0.00024658,2]
[421484957,1777753858000,-300.0,0.00024658,2]
[421484954,1777753858000,-300.0,0.00024658,2]
[421484961,1777753858000,-300.0,0.00024658,2]
[421484995,1777753858000,-563.0,0.00024658,2]
[421485051,1777753858000,-151.0,0.00024658,2]
[421484992,1777753858000,-563.0,0.00024658,2]
[421485024,1777753858000,-563.0,0.00024658,2]
[421485021,1777753858000,-563.0,0.00024658,2]
[421485027,1777753858000,-563.0,0.00024658,2]
[421485030,1777753858000,-563.0,0.00024658,2]
[421485026,1777753858000,-563.0,0.00024658,2]
[421485028,1777753858000,-563.0,0.00024658,2]
[421485031,1777753858000,-563.0,0.00024658,2]
[421485029,1777753858000,-563.0,0.00024658,2]
[421485025,1777753858000,-563.0,0.00024658,2]
[421485035,1777753858000,-563.0,0.00024658,2]
[421485034,1777753858000,-563.0,0.00024658,2]
[421485036,1777753858000,-563.0,0.00024658,2]
[421485023,1777753858000,-563.0,0.00024658,2]
[421485038,1777753858000,-275.34,0.00024658,2]
[421485037,1777753858000,-1000.0,0.00024658,2]
[421485039,1777753858000,-483.943138,0.00024658,2]
[421485041,1777753858000,-483.943138,0.00024658,2]
[421485042,1777753858000,-483.943138,0.00024658,2]
[421485043,1777753858000,-483.943138,0.00024658,2]
[421485044,1777753858000,-483.943138,0.00024658,2]
[421485047,1777753858000,-151.0,0.00024658,2]
[421485046,1777753858000,-483.943138,0.00024658,2]
[421485048,1777753858000,-151.0,0.00024658,2]
[421485050,1777753858000,-151.0,0.00024658,2]
[421485049,1777753858000,-151.0,0.00024658,2]
[421484989,1777753858000,-563.0,0.00024658,2]
[421485040,1777753858000,-483.943138,0.00024658,2]
[421485033,1777753858000,-563.0,0.00024658,2]
[421485045,1777753858000,-483.943138,0.00024658,2]
[421485022,1777753858000,-563.0,0.00024658,2]
[421485032,1777753858000,-563.0,0.00024658,2]
[421484990,1777753858000,-563.0,0.00024658,2]
[421484993,1777753858000,-563.0,0.00024658,2]
[421484994,1777753858000,-563.0,0.00024658,2]
[421484997,1777753858000,-563.0,0.00024658,2]
[421484999,1777753858000,-563.0,0.00024658,2]
[421485000,1777753858000,-563.0,0.00024658,2]
[421485008,1777753858000,-563.0,0.00024658,2]
[421485002,1777753858000,-563.0,0.00024658,2]
[421485003,1777753858000,-563.0,0.00024658,2]
[421485007,1777753858000,-563.0,0.00024658,2]
[421484998,1777753858000,-563.0,0.00024658,2]
[421485004,1777753858000,-563.0,0.00024658,2]
[421485006,1777753858000,-563.0,0.00024658,2]
[421485001,1777753858000,-563.0,0.00024658,2]
[421485005,1777753858000,-563.0,0.00024658,2]
[421485015,1777753858000,-563.0,0.00024658,2]
[421485018,1777753858000,-563.0,0.00024658,2]
[421485014,1777753858000,-563.0,0.00024658,2]
[421485012,1777753858000,-563.0,0.00024658,2]
[421485017,1777753858000,-563.0,0.00024658,2]
[421485019,1777753858000,-563.0,0.00024658,2]
[421485016,1777753858000,-563.0,0.00024658,2]
[421485013,1777753858000,-563.0,0.00024658,2]
[421485011,1777753858000,-563.0,0.00024658,2]
[421485010,1777753858000,-563.0,0.00024658,2]
[421485009,1777753858000,-563.0,0.00024658,2]
[421485020,1777753858000,-563.0,0.00024658,2]
[421485098,1777753859000,-1911.75385991,0.00025074,2]
[421485093,1777753859000,-151.0,0.00025,2]
[421485094,1777753859000,-190.258876,0.00025,2]
[421485092,1777753859000,-151.0,0.00025,2]
[421485091,1777753859000,-151.0,0.00025,2]
[421485087,1777753859000,-240.965537,0.00025,2]
[421485088,1777753859000,-151.0,0.00025,2]
[421485089,1777753859000,-151.0,0.00025,2]
[421485084,1777753859000,-240.965537,0.00025,2]
[421485086,1777753859000,-151.0,0.00025,2]
[421485097,1777753859000,-1911.75385991,0.00025065,2]
[421485096,1777753859000,-1000.0,0.00025048,2]
[421485090,1777753859000,-151.0,0.00025,2]
[421485100,1777753859000,-151.0,0.00025191,7]
[421485124,1777753859000,-1650.0,0.00025666,2]
[421485102,1777753859000,-161.92,0.00025234,30]
[421485103,1777753859000,-169.42,0.00025234,30]
[421485104,1777753859000,-502.0,0.00025324,2]
[421485105,1777753859000,-300.0,0.00025324,2]
[421485106,1777753859000,-210.0,0.00025324,2]
[421485108,1777753859000,-161.92,0.00025523,2]
[421485107,1777753859000,-158.13,0.00025342,2]
[421485099,1777753859000,-1911.75385991,0.00025075,2]
[421485109,1777753859000,-300.0,0.0002553,2]
[421485110,1777753859000,-300.0,0.0002553,2]
[421485111,1777753859000,-300.0,0.0002553,2]
[421485113,1777753859000,-300.0,0.0002553,2]
[421485122,1777753859000,-1650.0,0.00025666,2]
[421485095,1777753859000,-1000.0,0.00025048,2]
[421485101,1777753859000,-250.0,0.00025205,2]
[421485085,1777753859000,-240.965537,0.00025,2]
[421485052,1777753859000,-151.0,0.00024658,2]
[421485079,1777753859000,-150.0,0.00025,2]
[421485057,1777753859000,-169.42,0.00024658,2]
[421485053,1777753859000,-151.0,0.00024658,2]
[421485112,1777753859000,-300.0,0.0002553,2]
[421485055,1777753859000,-151.0,0.00024658,2]
[421485054,1777753859000,-151.0,0.00024658,2]
[421485056,1777753859000,-161.92,0.00024658,2]
[421485062,1777753859000,-15201.05447576,0.000249,2]
[421485069,1777753859000,-540.0,0.00025,2]
[421485063,1777753859000,-161.92,0.00024946,7]
[421485058,1777753859000,-1911.75385991,0.00024708,2]
[421485060,1777753859000,-269.0,0.00024809,10]
[421485064,1777753859000,-169.42,0.00024946,7]
[421485061,1777753859000,-1911.75385991,0.00024811,2]
[421485059,1777753859000,-1911.75385991,0.0002479,2]
[421485081,1777753859000,-163.0,0.00025,2]
[421485070,1777753859000,-617.25185654,0.00025,2]
[421485066,1777753859000,-209.69472935,0.00025,2]
[421485068,1777753859000,-2000.0,0.00025,2]
[421485067,1777753859000,-1803.83213117,0.00025,2]
[421485072,1777753859000,-7202.94874849,0.00025,2]
[421485073,1777753859000,-55918.36611077,0.00025,7]
[421485080,1777753859000,-162.41759262,0.00025,7]
[421485076,1777753859000,-163.68185245,0.00025,2]
[421485071,1777753859000,-3075.54859142,0.00025,2]
[421485074,1777753859000,-2223.34335565,0.00025,2]
[421485075,1777753859000,-169.06121497,0.00025,2]
[421485083,1777753859000,-240.965537,0.00025,2]
[421485078,1777753859000,-150.26422536,0.00025,2]
[421485082,1777753859000,-398.0,0.00025,2]
[421485077,1777753859000,-4840.66247729,0.00025,2]
[421485065,1777753859000,-1125.75660607,0.00025,2]
[421485114,1777753859000,-300.0,0.0002553,2]
[421485123,1777753859000,-1650.0,0.00025666,2]
[421485115,1777753859000,-300.0,0.0002553,2]
[421485153,1777753859000,-4570.11370427,0.00026,2]
[421485164,1777753859000,-483.943138,0.000263,2]
[421485152,1777753859000,-150.0,0.00025994,2]
[421485155,1777753859000,-2000.0,0.00026144,2]
[421485159,1777753859000,-151.0,0.000263,2]
[421485157,1777753859000,-159.0,0.00026296,2]
[421485165,1777753859000,-483.943138,0.000263,2]
[421485156,1777753859000,-2000.0,0.00026144,2]
[421485154,1777753859000,-218.73727933,0.00026,2]
[421485160,1777753859000,-151.0,0.000263,2]
[421485158,1777753859000,-1609.36706393,0.000263,2]
[421485162,1777753859000,-483.943138,0.000263,2]
[421485161,1777753859000,-151.0,0.000263,2]
[421485167,1777753859000,-250.0,0.00026393,2]
[421485163,1777753859000,-483.943138,0.000263,2]
[421485177,1777753859000,-350.0,0.00026941,2]
[421485179,1777753859000,-1045.88931492,0.00027,2]
[421485176,1777753859000,-188.0,0.0002693,2]
[421485166,1777753859000,-450.0,0.00026301,2]
[421485178,1777753859000,-250.0,0.00027,2]
[421485168,1777753859000,-152.0,0.00026542,3]
[421485169,1777753859000,-200.0,0.00026653,2]
[421485172,1777753859000,-550.0,0.00026849,2]
[421485170,1777753859000,-2500.0,0.00026692,2]
[421485171,1777753859000,-2500.0,0.00026692,2]
[421485173,1777753859000,-150.0,0.0002693,2]
[421485174,1777753859000,-150.0,0.0002693,2]
[421485181,1777753859000,-250.0,0.00027073,2]
[421485180,1777753859000,-530.0,0.00027,2]
[421485183,1777753859000,-250.0,0.00027073,2]
[421485175,1777753859000,-150.0,0.0002693,2]
[421485147,1777753859000,-151.0,0.0002589,2]
[421485182,1777753859000,-250.0,0.00027073,2]
[421485145,1777753859000,-151.0,0.0002589,3]
[421485150,1777753859000,-150.0,0.00025994,2]
[421485117,1777753859000,-316.0,0.0002553,2]
[421485118,1777753859000,-1500.0,0.00025596,2]
[421485119,1777753859000,-1500.0,0.00025596,2]
[421485121,1777753859000,-1650.0,0.00025666,2]
[421485116,1777753859000,-300.0,0.0002553,2]
[421485126,1777753859000,-1650.0,0.00025666,2]
[421485134,1777753859000,-25783.49833712,0.0002589,5]
[421485135,1777753859000,-168.362712,0.0002589,2]
[421485125,1777753859000,-1650.0,0.00025666,2]
[421485136,1777753859000,-1977.915675,0.0002589,2]
[421485137,1777753859000,-1977.915675,0.0002589,2]
[421485127,1777753859000,-1650.0,0.00025666,2]
[421485128,1777753859000,-1650.0,0.00025666,2]
[421485131,1777753859000,-162.41759262,0.000258,7]
[421485120,1777753859000,-1650.0,0.00025666,2]
[421485133,1777753859000,-150.0,0.00025845,2]
[421485149,1777753859000,-150.0,0.00025994,2]
[421485130,1777753859000,-350.0,0.00025753,2]
[421485148,1777753859000,-607.14633956,0.0002599,2]
[421485151,1777753859000,-150.0,0.00025994,2]
[421485144,1777753859000,-151.0,0.0002589,2]
[421485142,1777753859000,-247.901707,0.0002589,2]
[421485146,1777753859000,-272.930974,0.0002589,3]
[421485141,1777753859000,-247.901707,0.0002589,2]
[421485129,1777753859000,-1332.0,0.00025666,2]
[421485132,1777753859000,-206.25,0.00025838,2]
[421485143,1777753859000,-247.901707,0.0002589,2]
[421485139,1777753859000,-1977.915675,0.0002589,2]
[421485138,1777753859000,-1977.915675,0.0002589,2]
[421485140,1777753859000,-247.901707,0.0002589,2]
[421485222,1777753860000,-200.0,0.00027397,2]
[421485228,1777753860000,-221.01571,0.00027397,2]
[421485223,1777753860000,-275.34,0.00027397,2]
[421485226,1777753860000,-221.01571,0.00027397,2]
[421485214,1777753860000,-500.0,0.00027397,2]
[421485227,1777753860000,-221.01571,0.00027397,2]
[421485220,1777753860000,-1500.0,0.00027397,2]
[421485219,1777753860000,-350.70881684,0.00027397,2]
[421485217,1777753860000,-261.94270072,0.00027397,2]
[421485225,1777753860000,-221.01571,0.00027397,2]
[421485218,1777753860000,-150.0,0.00027397,2]
[421485224,1777753860000,-221.01571,0.00027397,2]
[421485233,1777753860000,-151.0,0.00027397,2]
[421485230,1777753860000,-221.01571,0.00027397,2]
[421485229,1777753860000,-221.01571,0.00027397,2]
[421485231,1777753860000,-221.01571,0.00027397,2]
[421485232,1777753860000,-239.39863,0.00027397,2]
[421485235,1777753860000,-151.0,0.00027397,2]
[421485236,1777753860000,-151.0,0.00027397,2]
[421485234,1777753860000,-151.0,0.00027397,2]
[421485238,1777753860000,-151.0,0.00027397,2]
[421485237,1777753860000,-151.0,0.00027397,2]
[421485239,1777753860000,-196.783084,0.00027397,2]
[421485240,1777753860000,-151.0,0.00027397,2]
[421485213,1777753860000,-500.0,0.00027397,2]
[421485250,1777753860000,-4800.04,0.000274,7]
[421485221,1777753860000,-650.0,0.00027397,5]
[421485212,1777753860000,-500.0,0.00027397,2]
[421485199,1777753860000,-1351.0,0.00027234,2]
[421485210,1777753860000,-500.0,0.00027397,2]
[421485243,1777753860000,-5525.09,0.00027397,10]
[421485187,1777753860000,-250.0,0.00027073,2]
[421485184,1777753860000,-250.0,0.00027073,2]
[421485191,1777753860000,-3159.0,0.00027123,2]
[421485189,1777753860000,-177.0,0.00027073,2]
[421485188,1777753860000,-250.0,0.00027073,2]
[421485190,1777753860000,-3612.78108002,0.00027123,2]
[421485192,1777753860000,-503.0,0.00027137,2]
[421485186,1777753860000,-250.0,0.00027073,2]
[421485185,1777753860000,-250.0,0.00027073,2]
[421485193,1777753860000,-2256.0,0.00027195,2]
[421485200,1777753860000,-3000.0,0.0002724,2]
[421485195,1777753860000,-151.0,0.00027234,2]
[421485202,1777753860000,-5998.0,0.00027284,5]
[421485201,1777753860000,-1857.77057834,0.0002724,2]
[421485203,1777753860000,-4156.64862984,0.0002739,2]
[421485196,1777753860000,-151.0,0.00027234,2]
[421485198,1777753860000,-623.0,0.00027234,2]
[421485197,1777753860000,-1220.0,0.00027234,2]
[421485205,1777753860000,-151.0,0.0002739,2]
[421485215,1777753860000,-500.0,0.00027397,2]
[421485216,1777753860000,-500.0,0.00027397,2]
[421485206,1777753860000,-151.0,0.0002739,2]
[421485207,1777753860000,-151.0,0.00027397,2]
[421485208,1777753860000,-151.0,0.00027397,2]
[421485204,1777753860000,-8211.60457053,0.0002739,2]
[421485209,1777753860000,-500.0,0.00027397,2]
[421485211,1777753860000,-500.0,0.00027397,2]
[421485242,1777753860000,-6630.11,0.00027397,10]
[421485194,1777753860000,-151.0,0.00027234,2]
[421485245,1777753860000,-3836.87,0.00027397,10]
[421485277,1777753860000,-300.0,0.00028,5]
[421485285,1777753860000,-159.76,0.00028,2]
[421485287,1777753860000,-503.0,0.00028216,3]
[421485288,1777753860000,-159.0,0.00028267,2]
[421485289,1777753860000,-200.0,0.00028351,2]
[421485278,1777753860000,-300.0,0.00028,5]
[421485280,1777753860000,-159.76,0.00028,2]
[421485282,1777753860000,-159.76,0.00028,2]
[421485284,1777753860000,-159.76,0.00028,2]
[421485276,1777753860000,-300.0,0.00028,5]
[421485279,1777753860000,-159.76,0.00028,2]
[421485283,1777753860000,-159.76,0.00028,2]
[421485296,1777753860000,-1329.97344928,0.00028646,15]
[421485290,1777753860000,-850.0,0.00028493,5]
[421485293,1777753860000,-1198.4,0.000286,7]
[421485301,1777753860000,-4800.04,0.000287,7]
[421485298,1777753860000,-150.59,0.00028673,7]
[421485300,1777753860000,-1398.94195334,0.00028697,2]
[421485295,1777753860000,-150.59,0.0002863,2]
[421485291,1777753860000,-500.0,0.00028493,5]
[421485297,1777753860000,-1398.94195334,0.00028667,2]
[421485294,1777753860000,-154.2,0.0002863,2]
[421485292,1777753860000,-168.19,0.000286,7]
[421485299,1777753860000,-154.2,0.00028676,7]
[421485302,1777753860000,-150.59,0.00028716,30]
[421485303,1777753860000,-154.2,0.00028722,30]
[421485241,1777753860000,-246.498,0.00027397,2]
[421485286,1777753860000,-8899.97,0.000281,14]
[421485274,1777753860000,-300.0,0.00028,5]
[421485281,1777753860000,-159.76,0.00028,2]
[421485275,1777753860000,-300.0,0.00028,5]
[421485244,1777753860000,-4604.24,0.00027397,10]
[421485271,1777753860000,-221.01571,0.00028,7]
[421485246,1777753860000,-500.0,0.00027397,5]
[421485247,1777753860000,-150.0,0.00027397,5]
[421485249,1777753860000,-1198.4,0.000274,7]
[421485248,1777753860000,-168.19,0.000274,7]
[421485251,1777753860000,-8899.97,0.000274,14]
[421485253,1777753860000,-227.77298619,0.00027489,5]
[421485256,1777753860000,-1087.0115135,0.00027534,2]
[421485254,1777753860000,-203.5424838,0.000275,2]
[421485252,1777753860000,-226.57079454,0.00027434,2]
[421485262,1777753860000,-151.0,0.00027795,7]
[421485257,1777753860000,-217.4023027,0.00027534,2]
[421485260,1777753860000,-298.92816621,0.00027671,2]
[421485255,1777753860000,-200.0,0.00027502,2]
[421485259,1777753860000,-1087.0115135,0.00027671,2]
[421485272,1777753860000,-221.01571,0.00028,7]
[421485258,1777753860000,-164.41049142,0.00027534,2]
[421485268,1777753860000,-151.0,0.00028,7]
[421485265,1777753860000,-250.0,0.00027945,5]
[421485273,1777753860000,-221.01571,0.00028,7]
[421485270,1777753860000,-221.01571,0.00028,7]
[421485269,1777753860000,-151.0,0.00028,7]
[421485266,1777753860000,-51437.92992267,0.00028,2]
[421485264,1777753860000,-750.0,0.00027945,5]
[421485261,1777753860000,-2460.99722472,0.00027788,5]
[421485263,1777753860000,-157.87459434,0.00027801,2]
[421485267,1777753860000,-151.0,0.00028,7]
[421485345,1777753861000,-150.0,0.00029581,2]
[421485346,1777753861000,-150.0,0.00029581,2]
[421485343,1777753861000,-150.0,0.00029534,2]
[421485342,1777753861000,-159.0,0.00029433,2]
[421485340,1777753861000,-8899.97,0.000294,14]
[421485335,1777753861000,-152.0,0.00029256,4]
[421485338,1777753861000,-226.57079449,0.00029308,2]
[421485339,1777753861000,-4516.10403302,0.000294,30]
[421485349,1777753861000,-600.0,0.00029589,2]
[421485330,1777753861000,-154.2,0.00029186,2]
[421485344,1777753861000,-1398.94195334,0.00029549,2]
[421485341,1777753861000,-1854.17777326,0.00029408,2]
[421485347,1777753861000,-275.0,0.00029581,2]
[421485361,1777753861000,-1398.94195334,0.00029617,2]
[421485350,1777753861000,-600.0,0.00029589,2]
[421485354,1777753861000,-445.0,0.00029589,2]
[421485352,1777753861000,-600.0,0.00029589,2]
[421485360,1777753861000,-1198.4,0.000296,7]
[421485351,1777753861000,-600.0,0.00029589,2]
[421485353,1777753861000,-600.0,0.00029589,2]
[421485358,1777753861000,-1050.0,0.00029589,5]
[421485359,1777753861000,-168.19,0.000296,7]
[421485356,1777753861000,-150.0,0.00029589,2]
[421485355,1777753861000,-150.0,0.00029589,2]
[421485357,1777753861000,-244.0,0.00029589,2]
[421485334,1777753861000,-150.72,0.00029232,30]
[421485348,1777753861000,-600.0,0.00029589,2]
[421485337,1777753861000,-503.0,0.00029295,4]
[421485305,1777753861000,-500.0,0.00028767,5]
[421485332,1777753861000,-200.0,0.00029199,2]
[421485362,1777753861000,-199.0,0.00029629,2]
[421485306,1777753861000,-154.2,0.00028769,2]
[421485309,1777753861000,-150.59,0.00028802,7]
[421485307,1777753861000,-251.02599638,0.00028788,2]
[421485310,1777753861000,-154.2,0.00028815,7]
[421485308,1777753861000,-8899.97,0.000288,14]
[421485313,1777753861000,-150.59,0.00028888,2]
[421485311,1777753861000,-150.59,0.00028845,30]
[421485312,1777753861000,-154.2,0.00028861,30]
[421485315,1777753861000,-1398.94195334,0.0002893,2]
[421485322,1777753861000,-1398.94195334,0.00029023,2]
[421485323,1777753861000,-950.0,0.00029041,5]
[421485314,1777753861000,-154.2,0.00028908,2]
[421485325,1777753861000,-150.59,0.0002906,7]
[421485326,1777753861000,-154.2,0.00029093,7]
[421485324,1777753861000,-154.2,0.00029047,2]
[421485317,1777753861000,-154.2,0.00028954,7]
[421485320,1777753861000,-154.2,0.00029001,30]
[421485318,1777753861000,-150.59,0.00028974,30]
[421485321,1777753861000,-150.59,0.00029017,2]
[421485316,1777753861000,-150.59,0.00028931,7]
[421485319,1777753861000,-30429.8274151,0.00029,2]
[421485328,1777753861000,-154.2,0.0002914,30]
[421485327,1777753861000,-150.59,0.00029103,30]
[421485329,1777753861000,-150.59,0.00029146,2]
[421485333,1777753861000,-154.33,0.00029232,7]
[421485336,1777753861000,-1398.94195334,0.00029274,2]
[421485331,1777753861000,-150.59,0.00029189,7]
[421485363,1777753861000,-1398.94195334,0.00029732,2]
[421485304,1777753861000,-150.59,0.00028759,2]
[421485365,1777753861000,-150.0,0.00029737,2]
[421485398,1777753861000,-20115.28117396,0.0003,2]
[421485397,1777753861000,-155.36304627,0.0003,30]
[421485399,1777753861000,-162.41759262,0.0003,3]
[421485401,1777753861000,-4734.72166154,0.0003,7]
[421485404,1777753861000,-14025.78269628,0.0003013,2]
[421485410,1777753861000,-151.0,0.00030135,7]
[421485407,1777753861000,-862.9142038,0.00030135,2]
[421485402,1777753861000,-200.0,0.00030048,2]
[421485405,1777753861000,-642.01027187,0.0003013,2]
[421485406,1777753861000,-6261.6139744,0.00030135,2]
[421485403,1777753861000,-1087.02362725,0.0003013,2]
[421485411,1777753861000,-483.943138,0.00030135,7]
[421485408,1777753861000,-151.0,0.00030135,7]
[421485409,1777753861000,-151.0,0.00030135,7]
[421485400,1777753861000,-162.41759262,0.0003,7]
[421485413,1777753861000,-483.943138,0.00030135,7]
[421485412,1777753861000,-483.943138,0.00030135,7]
[421485415,1777753861000,-1150.0,0.00030137,5]
[421485414,1777753861000,-483.943138,0.00030135,7]
[421485418,1777753861000,-500.0,0.00030137,5]
[421485416,1777753861000,-275.34,0.00030137,2]
[421485419,1777753861000,-1220.0,0.00030234,2]
[421485420,1777753861000,-623.0,0.00030234,2]